bitfinex/quotes_ETHUSD_20250813
["timestamp","ask_amount","ask_price","bid_price","bid_amount"]
[1755114652001,0.55,4715.2,4715.0,5.083]
[1755114652204,1.6247,4715.2,4715.0,5.083]
[1755114652391,1.0959,4715.1,4714.8,5.083]
[1755114652692,0.55,4714.9,4714.7,5.083]
[1755114652879,0.55,4714.9,4714.8,3.353]
[1755114653199,0.1064,4714.9,4714.8,3.353]
[1755114653565,1.1811,4714.9,4714.8,3.353]
[1755114653765,1.7311,4714.9,4714.8,3.353]
[1755114653997,0.55,4714.8,4714.7,5.083]
[1755114654199,1.6247,4714.8,4714.7,8.436]
[1755114654974,1.6247,4714.8,4713.9,0.001]
[1755114655186,0.55,4714.6,4714.2,8.437]
[1755114655367,0.55,4714.4,4714.2,8.437]
[1755114655692,1.89357,4714.3,4714.2,8.437]
[1755114657279,1.7311,4714.3,4714.2,8.437]
[1755114661583,1.7311,4714.3,4714.2,5.084]
[1755114661787,1.7311,4714.3,4714.2,8.437]
[1755114663674,1.7311,4714.3,4714.2,5.084]
[1755114663876,1.7311,4714.3,4714.2,8.436]
[1755114664097,1.90421,4714.3,4714.2,5.084]
[1755114664487,1.90421,4714.3,4714.2,8.437]
[1755114664681,1.90421,4714.3,4714.2,5.085]
[1755114664888,2.06504859,4714.3,4714.2,5.085]
[1755114665392,1.90421,4714.3,4714.2,5.085]
[1755114665799,1.90421,4714.3,4714.2,8.437]
[1755114668211,1.46471,4714.3,4714.2,8.437]
[1755114668407,0.82951,4714.3,4714.2,8.437]
[1755114668608,0.6564,4714.3,4714.2,8.437]
[1755114668822,1.7036,4714.3,4714.2,8.437]
[1755114669429,1.7036,4714.3,4714.2,8.436]
[1755114670028,1.7036,4714.3,4714.2,5.085]
[1755114670213,1.7036,4714.3,4714.2,8.436]
[1755114670412,1.88954642,4714.3,4714.2,8.436]
[1755114671620,1.88954642,4714.3,4714.2,5.085]
[1755114672430,1.88954642,4714.3,4714.2,8.435]
[1755114672931,1.88954642,4714.3,4714.2,5.085]
[1755114673144,1.88954642,4714.3,4714.2,8.436]
[1755114674131,1.88954642,4714.3,4714.2,5.085]
[1755114674329,1.88954642,4714.3,4714.2,8.435]
[1755114676610,1.45944642,4714.3,4714.2,8.435]
[1755114676810,1.88954642,4714.3,4714.2,8.435]
[1755114677009,0.29234642,4714.3,4714.2,8.435]
[1755114677233,0.4301,4715.3,4714.2,8.435]
[1755114677535,0.1064,4714.3,4714.2,8.435]
[1755114678744,0.1064,4714.3,4714.2,5.085]
[1755114678913,1.7036,4714.3,4714.2,8.434]
[1755114679129,0.6564,4714.3,4714.2,8.434]
[1755114682238,0.1064,4714.3,4714.2,8.434]
[1755114682437,0.1064,4714.3,4714.2,9.2795]
[1755114685517,0.1064,4714.3,4714.2,5.9305]
[1755114685728,0.1064,4714.3,4714.2,9.2785]
[1755114686244,0.1064,4714.3,4714.2,9.2775]
[1755114687344,0.1064,4714.3,4714.2,8.432]
[1755114688446,0.1064,4714.3,4714.2,5.085]
[1755114688648,0.1064,4714.3,4714.2,8.432]
[1755114689144,0.1064,4714.3,4714.2,8.431]
[1755114690425,0.1064,4714.4,4714.2,8.431]
[1755114692452,0.1064,4714.9,4714.3,10.76248177]
[1755114692651,0.1064,4714.9,4714.4,3.345]
[1755114694054,0.002,4715.5,4714.7,10.76248177]
[1755114694255,0.1064,4715.2,4714.8,3.345]
[1755114695346,14.5,4715.1,4714.8,3.345]
[1755114699766,0.1064,4715.2,4714.8,3.345]
[1755114700229,14.6064,4715.2,4714.8,3.345]
[1755114703552,0.1064,4715.2,4714.8,3.345]
[1755114703936,14.5,4715.1,4714.8,3.345]
[1755114706678,15.5425,4715.1,4714.8,3.345]
[1755114706847,1.0425,4715.0,4714.8,3.345]
[1755114707174,1.0425,4714.9,4714.8,3.345]
[1755114707546,0.6111,4714.9,4714.8,3.345]
[1755114707757,15.1111,4714.9,4714.8,3.345]
[1755114708159,15.5425,4714.9,4714.8,3.345]
[1755114708671,15.1111,4714.9,4714.8,3.345]
[1755114709939,14.5,4714.9,4714.8,3.345]
[1755114710458,1.1489,4715.2,4714.8,3.345]
[1755114710780,14.5,4715.1,4714.8,3.345]
[1755114710979,14.5,4715.1,4715.0,10.76248177]
[1755114711143,14.5,4715.1,4715.0,14.10248177]
[1755114712087,0.1064,4715.2,4715.0,14.10248177]
[1755114712286,0.002,4715.5,4715.1,3.0]
[1755114712598,0.002,4715.5,4715.4,10.76248177]
[1755114712754,0.002,4715.9,4715.8,13.76248177]
[1755114713082,0.002,4716.5,4715.9,3.0]
[1755114713285,0.002,4716.5,4716.4,10.76248177]
[1755114713456,0.002,4716.5,4716.4,22.29088177]
[1755114715901,0.002,4716.5,4716.4,22.37559177]
[1755114721972,0.002,4716.5,4716.4,22.37259177]
[1755114724381,0.02,4717.4,4716.8,10.76248177]
[1755114724571,0.02,4717.4,4716.8,14.09748177]
[1755114724900,0.02,4717.4,4716.8,14.20388177]
[1755114726405,0.002,4717.5,4717.4,3.0]
[1755114726573,0.02,4718.4,4717.4,6.35519811]
[1755114726774,0.02,4718.4,4718.3,13.86808177]
[1755114726973,0.02,4718.4,4718.3,17.20208177]
[1755114727207,0.1056,4720.0,4718.4,3.0]
[1755114727381,1.0413,4719.5,4718.7,3.0]
[1755114727592,0.5841,4719.5,4719.3,0.1056]
[1755114727785,0.1056,4720.0,4719.3,3.334]
[1755114728098,0.1056,4720.0,4719.3,3.67796]
[1755114728400,0.1056,4720.0,4719.3,3.334]
[1755114728700,0.5841,4719.8,4719.3,3.334]
[1755114728870,0.4572,4719.7,4719.3,3.334]
[1755114729070,0.1056,4720.0,4719.1,10.86808177]
[1755114729071,1.0613,4719.4,4719.1,10.86808177]
[1755114729314,1.0413,4719.3,4719.2,3.333]
[1755114729680,15.5413,4719.3,4719.2,3.333]
[1755114730277,1.0413,4719.3,4719.2,3.333]
[1755114730473,1.0413,4719.3,4719.2,14.09548177]
[1755114730678,1.0413,4719.3,4719.0,0.1056]
[1755114730999,1.0413,4719.2,4719.0,0.1056]
[1755114731303,1.0413,4719.1,4718.8,5.081]
[1755114731604,1.0413,4719.0,4718.9,3.332]
[1755114734515,1.0413,4719.0,4718.9,3.331]
[1755114735014,1.0413,4719.0,4718.8,5.081]
[1755114735218,0.02,4719.4,4718.9,3.331]
[1755114735725,0.1056,4719.0,4718.9,3.331]
[1755114736026,1.1469,4719.0,4718.9,3.331]
[1755114736185,0.1056,4719.0,4718.9,14.09348177]
[1755114736820,0.02,4719.4,4718.9,14.19908177]
[1755114737318,0.02,4719.4,4719.3,10.86808177]
[1755114737520,0.02,4719.4,4719.3,14.19808177]
[1755114738098,0.4772,4719.4,4719.3,3.4356]
[1755114738311,1.0613,4719.4,4719.3,3.4356]
[1755114738517,1.0613,4719.4,4719.3,3.33]
[1755114738819,1.16743,4719.4,4719.3,3.33]
[1755114739005,1.0613,4719.4,4719.3,3.33]
[1755114742034,0.02,4719.4,4719.3,3.33]
[1755114742816,0.02,4719.4,4719.3,3.53943671]
[1755114742986,0.02,4719.4,4719.3,3.56062629]
[1755114743189,0.02,4719.4,4719.3,6.45678958]
[1755114743414,0.02,4719.4,4719.3,6.4356]
[1755114743927,0.02,4719.4,4719.3,6.4346]
[1755114744932,0.02,4719.4,4719.3,3.1056]
[1755114745138,0.02,4719.4,4719.3,6.4336]
[1755114745435,1.0613,4719.4,4719.3,6.4336]
[1755114746019,1.0613,4719.4,4719.3,3.1056]
[1755114746202,0.02,4719.4,4719.3,6.4336]
[1755114746536,0.022,4719.4,4719.3,6.4336]
[1755114748738,1.0633,4719.4,4719.3,0.1056]
[1755114749215,1.0633,4719.4,4719.3,3.4326]
[1755114752131,1.0633,4719.4,4719.3,0.1056]
[1755114752304,1.0633,4719.4,4719.3,3.327]
[1755114752807,1.0633,4719.4,4718.9,0.1056]
[1755114753027,1.0647,4719.3,4719.0,3.326]
[1755114753226,0.1056,4719.2,4719.0,3.326]
[1755114753430,1.1703,4719.2,4719.0,3.326]
[1755114753824,1.0647,4719.1,4718.8,5.081]
[1755114754026,0.1056,4719.2,4718.9,3.326]
[1755114754234,1.0647,4719.0,4718.8,5.081]
[1755114754436,14.5,4719.1,4718.9,3.326]
[1755114754935,1.0647,4719.0,4718.8,5.081]
[1755114755162,14.5,4719.1,4718.9,3.326]
[1755114755510,0.1056,4719.0,4718.8,5.081]
[1755114755713,1.1703,4719.0,4718.9,3.326]
[1755114756440,1.1703,4719.0,4718.9,3.325]
[1755114759311,0.022,4719.4,4718.9,4.1656]
[1755114759514,0.6297,4719.4,4719.1,10.76248177]
[1755114759742,0.022,4719.4,4719.2,3.325]
[1755114759942,0.022,4719.4,4719.3,0.1056]
[1755114760911,0.022,4719.4,4719.3,3.1056]
[1755114761132,0.022,4719.4,4719.3,3.65668247]
[1755114761736,0.6077,4721.5,4719.3,3.99132521]
[1755114762052,0.1056,4721.2,4720.3,13.76248177]
[1755114762250,0.1056,4721.2,4720.3,17.19208177]
[1755114763942,0.6077,4720.8,4720.3,13.86808177]
[1755114764246,1.0867,4720.4,4720.3,0.1056]
[1755114764442,1.0867,4720.4,4720.3,3.4296]
[1755114764617,0.022,4720.4,4720.3,3.4296]
[1755114765319,0.022,4720.4,4720.3,3.77256]
[1755114765720,0.022,4720.4,4719.3,0.55108247]
[1755114765721,1.0867,4720.4,4719.3,0.55108247]
[1755114765940,1.0867,4720.4,4718.5,0.635068]
[1755114765941,1.0647,4720.3,4719.4,3.323]
[1755114766249,1.0647,4720.3,4719.6,3.0]
[1755114766548,1.0647,4720.3,4719.7,3.323]
[1755114767346,0.022,4720.4,4719.8,0.02118733]
[1755114767553,0.022,4720.4,4719.9,3.323]
[1755114767747,0.022,4720.4,4719.9,3.65741873]
[1755114768047,1.0647,4720.3,4719.9,3.65741873]
[1755114768242,1.0647,4720.2,4719.9,3.65741873]
[1755114768433,0.457,4720.2,4719.9,3.65741873]
[1755114768632,1.0647,4720.1,4719.9,0.33441873]
[1755114768833,0.022,4720.4,4720.0,3.322]
[1755114769336,0.6077,4720.3,4720.0,3.322]
[1755114769536,1.0647,4720.2,4720.0,1.0]
[1755114769741,0.022,4720.4,4720.1,8.4]
[1755114770323,1.0647,4720.3,4720.1,8.4]
[1755114770534,1.0647,4720.2,4720.1,8.4]
[1755114775950,1.1703,4720.2,4720.1,8.4]
[1755114778255,1.1703,4720.2,4720.1,8.398]
[1755114780723,1.1703,4720.2,4720.1,5.078]
[1755114780929,1.83953,4720.2,4720.1,5.078]
[1755114781153,1.83953,4720.2,4720.1,8.397]
[1755114784072,0.1056,4720.2,4720.1,8.397]
[1755114784368,0.022,4720.4,4720.1,8.397]
[1755114784661,0.022,4720.4,4720.3,10.72484443]
[1755114784875,0.022,4720.4,4720.3,14.04384443]
[1755114785757,0.022,4720.4,4720.3,14.04284443]
[1755114786779,0.022,4720.4,4720.3,3.318]
[1755114787546,0.022,4720.4,4720.1,15.90844443]
[1755114787750,0.022,4720.4,4720.2,3.318]
[1755114788377,0.5852,4720.4,4720.2,3.318]
[1755114788671,0.022,4720.4,4720.2,3.318]
[1755114789374,0.022,4720.4,4720.3,3.318]
[1755114791391,0.5676,4720.8,4720.3,3.318]
[1755114791608,0.022,4721.4,4720.1,5.1836]
[1755114791757,0.1056,4720.5,4720.2,3.317]
[1755114791955,1.0252,4720.4,4720.2,3.317]
[1755114792150,1.0252,4720.3,4720.2,3.317]
[1755114793572,1.0252,4720.3,4720.2,6.316]
[1755114794479,0.1056,4720.5,4720.2,6.316]
[1755114794652,0.5676,4720.5,4720.4,3.0]
[1755114794973,0.5676,4720.5,4720.4,6.316]
[1755114794974,15.0676,4720.5,4720.4,6.316]
[1755114795380,15.6308,4720.5,4720.4,6.316]
[1755114795975,14.6056,4720.5,4720.4,3.316]
[1755114796277,15.6308,4720.5,4720.4,3.316]
[1755114799460,0.55,4720.4,4720.1,5.078]
[1755114799652,1.5752,4720.3,4720.2,3.315]
[1755114800082,1.6808,4720.3,4720.2,3.315]
[1755114800390,3.455208,4720.3,4720.2,14.03984443]
[1755114802176,3.455208,4720.3,4720.2,10.72484443]
[1755114802476,3.455208,4720.3,4720.2,14.03884443]
[1755114811502,3.455208,4720.3,4720.2,14.10884443]
[1755114813198,3.455208,4720.3,4720.2,3.384]
[1755114813784,3.455208,4720.3,4720.2,3.382]
[1755114817706,3.455208,4720.3,4720.2,0.07]
[1755114818091,1.6808,4720.3,4720.2,4.381]
[1755114818293,1.6808,4720.3,4720.2,1.07]
[1755114818508,16.1808,4720.3,4720.2,4.381]
[1755114818810,0.55,4720.2,4720.1,5.079]
[1755114818975,1.587,4720.2,4720.1,5.079]
[1755114819507,16.087,4720.2,4720.1,5.079]
[1755114819696,17.70626,4720.2,4720.1,5.079]
[1755114820080,17.70626,4720.2,4720.1,8.389]
[1755114820476,17.70626,4720.2,4720.1,5.079]
[1755114820678,20.70626,4720.2,4720.1,3.31]
[1755114820874,20.70626,4720.2,4719.7,0.001]
[1755114821115,0.6556,4719.8,4719.7,0.001]
[1755114821602,15.1556,4719.8,4719.7,0.001]
[1755114821778,16.1926,4719.8,4719.7,0.001]
[1755114821990,16.1926,4719.8,4719.7,3.311]
[1755114822188,0.55,4719.7,4718.9,5.08]
[1755114822393,0.6556,4719.4,4718.9,5.08]
[1755114822817,16.1926,4719.4,4718.9,5.08]
[1755114823620,16.1926,4719.4,4719.3,3.311]
[1755114825509,15.1556,4719.4,4719.3,3.311]
[1755114825709,15.7505,4719.4,4719.3,3.311]
[1755114826009,17.82777509,4719.4,4719.3,3.311]
[1755114828153,16.79077509,4719.4,4719.3,3.311]
[1755114828449,14.6056,4719.4,4719.3,3.311]
[1755114829112,0.1056,4719.4,4719.3,3.311]
[1755114835367,1.039,4721.2,4719.4,3.0]
[1755114835565,1.039,4721.2,4719.3,6.311]
[1755114835566,0.1056,4720.0,4719.6,3.0]
[1755114835742,0.1056,4720.0,4719.8,3.0]
[1755114835943,0.1056,4720.0,4719.9,6.307]
[1755114836663,0.1056,4720.0,4719.9,17.03184443]
[1755114840373,0.002,4720.5,4720.0,3.0]
[1755114840576,0.002,4720.5,4720.2,3.0]
[1755114840772,0.002,4720.5,4720.4,13.72484443]
[1755114840965,0.002,4720.5,4720.4,17.02984443]
[1755114841910,0.02,4723.4,4720.8,0.004]
[1755114842063,0.02,4723.4,4722.5,3.0]
[1755114842265,0.02,4724.4,4723.4,3.0]
[1755114842487,0.02,4725.4,4724.4,3.0]
[1755114842703,1.0115,4725.4,4725.2,10.72484443]
[1755114842902,1.0115,4725.4,4725.3,3.325]
[1755114843201,0.02,4725.4,4725.3,3.325]
[1755114843379,14.52,4725.4,4725.3,14.04984443]
[1755114843778,15.88299785,4725.4,4725.3,3.325]
[1755114844202,14.89149785,4725.4,4725.3,3.325]
[1755114844389,14.52,4725.4,4725.3,3.325]
[1755114844789,15.5115,4725.4,4725.3,3.325]
[1755114845370,0.55,4725.3,4724.5,5.079]
[1755114845573,0.9915,4725.2,4724.6,3.324]
[1755114845803,1.60615,4725.1,4724.6,3.324]
[1755114846106,0.9915,4725.0,4724.6,3.324]
[1755114846503,0.9915,4724.9,4724.6,3.324]
[1755114846812,0.9915,4724.8,4724.6,3.324]
[1755114846990,0.02,4725.4,4724.6,3.324]
[1755114847196,14.5,4724.7,4724.6,3.324]
[1755114847392,15.4915,4724.7,4724.6,3.324]
[1755114848409,15.4915,4724.7,4724.6,3.321]
[1755114848807,15.4915,4724.7,4724.5,5.079]
[1755114848808,17.04065,4724.7,4724.5,5.079]
[1755114849015,16.04915,4724.7,4724.6,3.32]
[1755114849707,17.04065,4724.7,4724.6,3.319]
[1755114849910,17.04065,4724.7,4724.5,5.079]
[1755114850106,1.80760792,4724.6,4724.5,5.079]
[1755114850497,1.80760792,4724.6,4724.5,8.396]
[1755114851683,1.80760792,4724.6,4724.5,8.395]
[1755114852082,1.80760792,4724.6,4724.5,8.394]
[1755114852894,1.91320792,4724.6,4724.5,8.394]
[1755114853721,1.0971,4724.6,4724.5,8.394]
[1755114853890,15.5971,4724.6,4724.5,8.394]
[1755114855287,14.6056,4724.6,4724.5,8.394]
[1755114856664,14.5,4724.6,4724.5,8.394]
[1755114856935,0.1056,4724.8,4724.5,8.394]
[1755114857215,1.1171,4725.4,4724.7,23.66286359]
[1755114857388,0.1056,4724.9,4724.8,3.314]
[1755114858719,14.6056,4724.9,4724.8,3.314]
[1755114859088,14.5,4724.9,4724.8,3.314]
[1755114860397,14.5,4724.9,4724.5,5.079]
[1755114860810,14.5,4724.9,4724.6,3.312]
[1755114861012,14.5,4724.9,4724.5,5.079]
[1755114861229,14.5,4724.9,4724.6,3.312]
[1755114861406,14.5,4724.9,4724.7,3.311]
[1755114862953,14.5,4724.9,4724.8,3.31]
[1755114863107,14.5,4724.9,4724.5,5.079]
[1755114863427,14.5,4724.9,4724.6,3.309]
[1755114864237,14.5,4724.9,4724.8,23.66286359]
[1755114864439,14.5,4724.9,4724.8,26.97186359]
[1755114864634,14.5,4724.9,4724.8,14.01305446]
[1755114865039,0.1056,4725.0,4724.8,14.01305446]
[1755114865522,14.6056,4725.0,4724.8,14.01305446]
[1755114865717,14.6056,4725.0,4724.8,10.70405446]
[1755114865946,14.6056,4725.0,4724.9,3.305]
[1755114866655,15.17133362,4725.0,4724.5,5.079]
[1755114866854,15.17133362,4725.0,4724.7,10.70405446]
[1755114867041,15.06573362,4725.0,4724.8,3.305]
[1755114867551,0.1056,4724.9,4724.8,3.305]
[1755114867723,1.62273336,4724.9,4724.8,3.305]
[1755114869048,1.62273336,4724.9,4724.5,5.079]
[1755114869337,0.1056,4724.9,4724.7,10.70405446]
[1755114869543,14.5,4724.8,4724.7,10.70405446]
[1755114869707,14.6056,4724.8,4724.7,14.00705446]
[1755114870345,14.6056,4724.8,4724.7,3.303]
[1755114870517,16.06616,4724.8,4724.7,3.303]
[1755114871543,16.06616,4724.8,4724.5,5.079]
[1755114871715,16.06616,4724.8,4724.6,3.303]
[1755114873147,0.55,4724.7,4723.4,0.001]
[1755114873347,3.55,4724.7,4723.4,0.001]
[1755114873639,3.55,4724.7,4723.5,2.544]
[1755114873640,0.55,4724.5,4723.5,2.544]
[1755114874028,0.55,4724.5,4723.4,0.001]
[1755114874633,0.55,4725.0,4723.4,0.001]
[1755114875432,0.02,4725.4,4723.5,3.303]
[1755114875837,0.55,4724.9,4723.5,3.303]
[1755114876024,0.55,4724.7,4723.5,3.303]
[1755114876448,0.55,4724.7,4723.4,0.001]
[1755114876614,0.55,4724.7,4723.3,5.074]
[1755114877217,0.55,4724.7,4723.2,5.074]
[1755114877650,0.55,4724.7,4723.3,3.303]
[1755114877850,0.55,4724.5,4723.2,5.074]
[1755114878830,0.55,4724.5,4722.9,5.075]
[1755114879355,0.55,4724.5,4723.0,3.303]
[1755114880351,3.55,4723.7,4721.7,5.075]
[1755114880660,3.65303084,4723.7,4721.7,5.075]
[1755114880830,2.11657379,4724.7,4720.1,23.70783009]
[1755114880831,0.02,4725.4,4724.5,0.55]
[1755114881020,0.02,4725.4,4725.3,20.06237002]
[1755114881355,0.02,4726.4,4725.5,0.55]
[1755114881526,0.02,4726.4,4725.9,23.68783009]
[1755114881850,0.02,4726.4,4726.0,3.752]
[1755114882060,0.02,4726.4,4726.3,26.68783009]
[1755114882427,0.11035401,4727.8,4726.4,3.0]
[1755114882759,0.11035401,4727.8,4727.1,23.68783009]
[1755114882994,0.11035401,4727.8,4727.2,3.757]
[1755114883255,0.1256,4727.4,4727.2,3.757]
[1755114884126,0.1256,4727.4,4725.6,5.075]
[1755114884127,0.1256,4727.4,4727.3,3.751]
[1755114884327,0.02,4727.4,4727.3,3.751]
[1755114885357,0.02,4727.4,4726.5,3.0]
[1755114885658,0.1056,4727.0,4725.9,3.0]
[1755114885958,0.1056,4727.0,4726.2,0.1056]
[1755114886158,0.02,4727.4,4726.0,0.1056]
[1755114886357,0.57,4727.4,4725.6,28.76283009]
[1755114886560,0.1056,4726.1,4725.7,3.0]
[1755114886955,0.1056,4726.1,4725.8,3.747]
[1755114887276,0.1056,4726.1,4725.6,28.76283009]
[1755114887660,0.1056,4726.3,4725.7,3.1056]
[1755114887977,0.1056,4726.3,4726.2,23.68783009]
[1755114888968,0.1056,4726.3,4726.2,27.43083009]
[1755114890738,0.1056,4726.3,4726.2,30.43083009]
[1755114891182,0.178823,4728.4,4726.3,33.55]
[1755114891183,0.02,4728.4,4726.3,33.55]
[1755114891480,0.02,4730.4,4728.6,3.0]
[1755114891696,0.02,4730.4,4729.3,26.68783009]
[1755114891974,0.02,4730.4,4730.3,26.68783009]
[1755114892178,0.1256,4731.4,4730.4,3.0]
[1755114892353,0.1256,4731.4,4731.0,23.68783009]
[1755114892552,0.02,4733.4,4731.2,3.0]
[1755114892752,0.1056,4732.5,4731.8,0.1056]
[1755114892979,0.1056,4732.7,4732.0,0.1056]
[1755114893276,0.1056,4732.9,4732.2,0.1056]
[1755114893480,0.1056,4732.9,4732.3,3.848]
[1755114893666,0.1056,4732.9,4732.3,3.9536]
[1755114894398,0.1056,4733.3,4732.3,3.9536]
[1755114895100,0.02,4733.4,4732.3,3.848]
[1755114895398,0.1056,4732.7,4732.3,3.844]
[1755114895994,0.55,4733.3,4731.0,3.0]
[1755114896292,0.55,4733.3,4730.9,18.02968807]
[1755114896293,0.1256,4732.4,4731.6,0.1056]
[1755114896497,0.1256,4732.4,4731.7,3.838]
[1755114896900,0.02,4732.4,4731.8,3.834]
[1755114897201,0.02,4732.4,4731.9,3.837]
[1755114897382,0.02,4732.4,4729.6,18.02968807]
[1755114897801,0.02,4732.4,4730.4,3.0]
[1755114898293,0.02,4732.4,4729.6,18.02968807]
[1755114898464,0.02,4732.4,4730.4,3.829]
[1755114898864,0.02,4732.4,4730.5,3.0]
[1755114900303,0.02,4732.4,4730.4,3.829]
[1755114900516,0.02,4732.4,4730.5,3.0]
[1755114900864,0.02,4732.4,4730.5,21.02968807]
[1755114902499,0.02,4732.4,4730.4,4.379]
[1755114902808,0.02,4732.4,4730.4,6.829]
[1755114902977,0.02,4732.4,4730.5,3.0]
[1755114903311,0.499,4735.0,4732.7,3.0]
[1755114903496,0.499,4735.0,4734.1,0.55]
[1755114903674,0.499,4735.0,4734.3,3.55]
[1755114903881,0.499,4735.0,4734.9,21.02968807]
[1755114904185,0.499,4735.0,4734.9,25.04568807]
[1755114905200,0.02,4735.4,4735.1,0.55]
[1755114905385,0.02,4735.4,4735.2,0.02111843]
[1755114905585,0.02,4735.4,4735.1,0.55]
[1755114906096,0.02,4738.4,4735.2,0.02111843]
[1755114906291,0.02,4738.4,4736.3,18.02968807]
[1755114906611,0.02,4738.4,4736.3,30.09868807]
[1755114906905,0.02,4738.4,4736.3,12.069]
[1755114907407,0.1056,4737.8,4736.3,12.1746]
[1755114907915,0.55,4737.3,4736.3,5.066]
[1755114908114,0.1056,4736.5,4736.3,9.059]
[1755114908419,0.1256,4736.4,4734.7,5.066]
[1755114908581,0.1056,4735.8,4735.2,0.07]
[1755114908782,0.1056,4735.3,4735.2,0.07]
[1755114909205,0.55,4735.2,4733.4,0.1056]
[1755114909408,0.6556,4735.3,4733.4,0.1056]
[1755114909409,0.55,4734.7,4733.4,0.57]
[1755114909617,0.55,4735.0,4733.5,3.994]
[1755114909907,0.1056,4733.6,4733.5,3.994]
[1755114910123,14.6056,4733.6,4733.5,3.994]
[1755114910317,14.6056,4733.6,4733.5,3.989]
[1755114911318,14.5,4733.6,4733.5,4.3899]
[1755114911484,14.5,4733.6,4733.5,9.4539]
[1755114911681,0.1056,4734.0,4733.5,9.4539]
[1755114912193,14.5,4733.9,4733.5,9.4539]
[1755114912992,0.1056,4734.0,4733.5,9.4539]
[1755114913515,0.1056,4734.3,4733.6,1.06155]
[1755114913906,0.1056,4734.3,4733.6,0.1056]
[1755114914214,3.55,4736.0,4733.7,3.971]
[1755114914415,0.55,4733.7,4732.2,5.064]
[1755114914715,18.02968807,4734.6,4733.2,3.968]
[1755114914716,0.02112573,4733.6,4733.2,3.968]
[1755114915024,0.02112573,4733.9,4732.2,5.064]
[1755114915186,14.5,4732.7,4732.2,5.064]
[1755114915697,0.9177,4732.6,4732.2,5.064]
[1755114916002,14.5,4732.7,4732.3,3.97]
[1755114916206,0.9177,4732.6,4732.3,3.97]
[1755114916386,0.9177,4732.5,4732.2,5.064]
[1755114916717,0.9177,4732.4,4732.3,3.966]
[1755114917121,0.55,4732.3,4732.1,0.02]
[1755114917315,1.61658257,4732.3,4731.2,5.064]
[1755114917485,0.55,4732.1,4731.2,5.064]
[1755114917685,0.55,4731.9,4731.2,5.064]
[1755114918113,18.02968807,4734.3,4731.2,5.064]
[1755114918114,0.9177,4731.8,4731.2,5.064]
[1755114918318,0.55,4731.7,4731.2,5.064]
[1755114918493,14.5,4731.6,4731.2,5.064]
[1755114918690,0.9177,4731.5,4731.3,3.965]
[1755114919018,0.9177,4731.9,4731.3,3.965]
[1755114919517,14.5,4731.8,4731.3,3.965]
[1755114920390,15.99743,4731.8,4731.3,3.965]
[1755114920620,14.5,4731.8,4731.3,3.965]
[1755114920937,0.4743,4732.1,4731.3,3.965]
[1755114921103,0.4434,4732.4,4731.4,3.0]
[1755114921291,0.4743,4732.7,4731.4,3.0]
[1755114921292,14.5,4732.3,4731.4,3.0]
[1755114921722,0.4743,4732.7,4731.4,3.0]
[1755114921929,0.4743,4734.3,4731.5,0.02113494]
[1755114922219,14.9434,4734.2,4731.3,3.0]
[1755114922530,0.9177,4734.1,4731.4,4.52413539]
[1755114922730,0.9177,4734.1,4731.4,4.503]
[1755114922919,0.9177,4734.1,4731.5,3.0]
[1755114923092,14.5,4734.0,4731.5,3.02113494]
[1755114923293,14.5,4734.0,4732.1,3.0]
[1755114923502,14.5,4734.0,4731.6,3.55]
[1755114923722,14.5,4734.0,4731.8,3.0]
[1755114924387,0.1056,4734.3,4733.6,0.1056]
[1755114924591,0.4743,4734.2,4733.7,5.065]
[1755114924822,14.5,4734.1,4733.8,3.947]
[1755114925332,14.6056,4734.1,4733.9,3.946]
[1755114925701,0.9177,4734.0,4733.9,0.12]
[1755114926014,0.9177,4734.0,4733.9,4.061]
[1755114926597,0.9177,4734.0,4733.9,0.12]
[1755114926794,1.4677,4734.0,4733.9,0.12]
[1755114927012,1.4677,4734.0,4733.9,4.058]
[1755114927212,0.55,4733.9,4732.4,0.1056]
[1755114927508,0.55,4733.7,4731.9,0.1056]
[1755114927697,0.02112573,4733.6,4732.0,8.086]
[1755114927902,0.55,4733.4,4732.0,8.086]
[1755114928104,0.55,4733.2,4732.0,8.086]
[1755114928405,2.75735,4733.1,4732.0,8.086]
[1755114928733,15.5885,4733.0,4732.1,3.942]
[1755114929024,15.5885,4733.0,4732.2,3.938]
[1755114929025,1.6385,4732.9,4732.2,3.938]
[1755114929402,1.0885,4732.8,4732.0,5.064]
[1755114929738,15.5147,4732.7,4732.1,3.936]
[1755114930027,0.55,4732.5,4732.1,3.936]
[1755114930217,0.55,4732.3,4732.2,8.999]